Workbook

Sheet Sheet1
F2: İKİ DOĞRULTUDA ÇALIŞAN DÖŞEME MOMENT HESABI (TS500 katsayılarıyla) (inş.müh. Gürcan BERBEROĞLU tel:0532 366 02 04 www.betoncelik.com )
AG3: Dikkat sadece sarı hücrelere data girilecek.
V5: Lsnx = | Y5: 7 | AA5: m | AO5: Lsnx = döşeme x yönünde serbest açıklık.
AG6: =IF(AH6="sürekli kenar",1,0) -> 1 | AH6: sürekli kenar | AO6: Lsny = döşeme y yönünde serbest açıklık.
G9: =IF(H9="sürekli kenar",1,0) -> 1 | H9: sürekli kenar | AU9: y
N11: m
N12: 5 | AG12: =IF(AH12="sürekli kenar",1,0) -> 1 | AH12: sürekli kenar
BA13: x
AQ14: =IF(AND(H9="sürekli kenar",AH6="sürekli kenar",T23="sürekli kenar",AH12="sürekli kenar"),"K1",0) -> K1
N15: Lsny = | AQ15: =IF(AND(H9="süreksiz kenar",AH6="sürekli kenar",T23="sürekli kenar",AH12="sürekli kenar"),"K2",IF(AND(H9="sürekli kenar",AH6="süreksiz kenar",T23="sürekli kenar",AH12="sürekli kenar"),"K2",IF(AND(H9="sürekli kenar",AH6="sürekli kenar",T23="süreksiz kenar",AH12="sürekli kenar"),"K2",IF(AND(H9="sürekli kenar",AH6="sürekli kenar",T23="sürekli kenar",AH12="süreksiz kenar"),"K2",0)))) -> 0
AQ16: =IF(AND(H9="süreksiz kenar",AH6="süreksiz kenar",T23="sürekli kenar",AH12="sürekli kenar"),"K3",IF(AND(H9="sürekli kenar",AH6="süreksiz kenar",T23="sürekli kenar",AH12="süreksiz kenar"),"K3",IF(AND(H9="sürekli kenar",AH6="sürekli kenar",T23="süreksiz kenar",AH12="süreksiz kenar"),"K3",IF(AND(H9="süreksiz kenar",AH6="sürekli kenar",T23="süreksiz kenar",AH12="sürekli kenar"),"K3",0)))) -> 0
AQ17: =IF(AND(Y5>=N12,AH6="süreksiz kenar",T23="süreksiz kenar",H9="sürekli kenar",AH12="sürekli kenar"),"K4",IF(AND(Y5<N12,H9="süreksiz kenar",AH12="süreksiz kenar",AH6="sürekli kenar",T23="sürekli kenar"),"K4",0)) -> 0
AQ18: =IF(AND(Y5<N12,AH6="süreksiz kenar",T23="süreksiz kenar",H9="sürekli kenar",AH12="sürekli kenar"),"K5",IF(AND(Y5>N12,H9="süreksiz kenar",AH12="süreksiz kenar",AH6="sürekli kenar",T23="sürekli kenar"),"K5",0)) -> 0
AQ19: =IF(AND(H9="sürekli kenar",AH6="süreksiz kenar",T23="süreksiz kenar",AH12="süreksiz kenar"),"K6",IF(AND(H9="süreksiz kenar",AH6="sürekli kenar",T23="süreksiz kenar",AH12="süreksiz kenar"),"K6",IF(AND(H9="süreksiz kenar",AH6="süreksiz kenar",T23="sürekli kenar",AH12="süreksiz kenar"),"K6",IF(AND(H9="süreksiz kenar",AH6="süreksiz kenar",T23="süreksiz kenar",AH12="sürekli kenar"),"K6",0)))) -> 0
AH20: döşeme tipi : | AL20: =IF(AND(H9="sürekli kenar",AH6="sürekli kenar",T23="sürekli kenar",AH12="sürekli kenar"),"K1",IF(AND(H9="süreksiz kenar",AH6="sürekli kenar",T23="sürekli kenar",AH12="sürekli kenar"),"K2",IF(AND(H9="sürekli kenar",AH6="süreksiz kenar",T23="sürekli kenar",AH12="sürekli kenar"),"K2",IF(AND(H9="sürekli kenar",AH6="sürekli kenar",T23="süreksiz kenar",AH12="sürekli kenar"),"K2",IF(AND(H9="sürekli kenar",AH6="sürekli kenar",T23="sürekli kenar",AH12="süreksiz kenar"),"K2",IF(AND(H9="süreksiz kenar",AH6="süreksiz kenar",T23="sürekli kenar",AH12="sürekli kenar"),"K3",IF(AND(H9="sürekli kenar",AH6="süreksiz kenar",T23="sürekli kenar",AH12="süreksiz kenar"),"K3",IF(AND(H9="sürekli kenar",AH6="sürekli kenar",T23="süreksiz kenar",AH12="süreksiz kenar"),"K3",IF(AND(H9="süreksiz kenar",AH6="sürekli kenar",T23="süreksiz kenar",AH12="sürekli kenar"),"K3",IF(AND(Y5>=N12,AH6="süreksiz kenar",T23="süreksiz kenar",H9="sürekli kenar",AH12="sürekli kenar"),"K4",IF(AND(Y5<N12,H9="süreksiz kenar",AH12="süreksiz kenar",AH6="sürekli kenar",T23="sürekli kenar"),"K4",IF(AND(Y5<N12,AH6="süreksiz kenar",T23="süreksiz kenar",H9="sürekli kenar",AH12="sürekli kenar"),"K5",IF(AND(Y5>N12,H9="süreksiz kenar",AH12="süreksiz kenar",AH6="sürekli kenar",T23="sürekli kenar"),"K5",IF(AND(H9="sürekli kenar",AH6="süreksiz kenar",T23="süreksiz kenar",AH12="süreksiz kenar"),"K6",IF(AND(H9="süreksiz kenar",AH6="sürekli kenar",T23="süreksiz kenar",AH12="süreksiz kenar"),"K6",IF(AND(H9="süreksiz kenar",AH6="süreksiz kenar",T23="sürekli kenar",AH12="süreksiz kenar"),"K6",IF(AND(H9="süreksiz kenar",AH6="süreksiz kenar",T23="süreksiz kenar",AH12="sürekli kenar"),"K6",IF(AND(H9="süreksiz kenar",AH6="süreksiz kenar",T23="süreksiz kenar",AH12="süreksiz kenar"),"K7",0)))))))))))))))))) -> K1 | AQ20: =IF(AND(H9="süreksiz kenar",AH6="süreksiz kenar",T23="süreksiz kenar",AH12="süreksiz kenar"),"K7",0) -> 0
S23: =IF(T23="sürekli kenar",1,0) -> 1 | T23: sürekli kenar
G25: iki yönde çalışan döşeme için moment katsayıları | Z25: M = a * Pd * Lsnkısa² için a katsayı tablosu TS500
G26: mesnetlenme | AA26: kısa kenar doğrultusunda | AY26: uzun kenar doğrultusunda | BB26: döş. tipi
AA29: m = Lu / Lk
AA30: 1 | AD30: 1.1 | AG30: 1.2 | AJ30: 1.3 | AM30: 1.4 | AP30: 1.5 | AS30: 1.75 | AV30: 2
G31: dört kenarı sürekli | O31: açıklık momenti | AA31: 0.025 | AD31: 0.03 | AG31: 0.034 | AJ31: 0.038 | AM31: 0.041 | AP31: 0.045 | AS31: 0.053 | AV31: 0.062 | AY31: 0.025 | BB31: K1
O32: mesnet momenti | T32: sürekli kenarda | AA32: 0.033 | AD32: 0.04 | AG32: 0.045 | AJ32: 0.05 | AM32: 0.054 | AP32: 0.059 | AS32: 0.071 | AV32: 0.083 | AY32: 0.033
G33: bir kenarı süreksiz (kısa veya uzun) | O33: açıklık momenti | AA33: 0.031 | AD33: 0.035 | AG33: 0.04 | AJ33: 0.043 | AM33: 0.046 | AP33: 0.049 | AS33: 0.056 | AV33: 0.064 | AY33: 0.031 | BB33: K2
O34: mesnet momenti | T34: sürekli kenarda | AA34: 0.041 | AD34: 0.047 | AG34: 0.053 | AJ34: 0.057 | AM34: 0.061 | AP34: 0.065 | AS34: 0.075 | AV34: 0.085 | AY34: 0.041
T35: süreksiz kenarda | AA35: 0.016 | AD35: 0.018 | AG35: 0.02 | AJ35: 0.022 | AM35: 0.023 | AP35: 0.025 | AS35: 0.028 | AV35: 0.032 | AY35: 0.016
G36: iki komşu kenar süreksiz | O36: açıklık momenti | AA36: 0.037 | AD36: 0.042 | AG36: 0.047 | AJ36: 0.05 | AM36: 0.053 | AP36: 0.055 | AS36: 0.062 | AV36: 0.068 | AY36: 0.037 | BB36: K3
O37: mesnet momenti | T37: sürekli kenarda | AA37: 0.049 | AD37: 0.056 | AG37: 0.062 | AJ37: 0.066 | AM37: 0.07 | AP37: 0.073 | AS37: 0.082 | AV37: 0.09 | AY37: 0.049
T38: süreksiz kenarda | AA38: 0.019 | AD38: 0.021 | AG38: 0.024 | AJ38: 0.025 | AM38: 0.027 | AP38: 0.028 | AS38: 0.031 | AV38: 0.034 | AY38: 0.019
G39: iki uzun kenar süreksiz | O39: açıklık momenti | AA39: 0.044 | AD39: 0.053 | AG39: 0.06 | AJ39: 0.065 | AM39: 0.068 | AP39: 0.071 | AS39: 0.077 | AV39: 0.08 | AY39: 0.044 | BB39: K4
O40: mesnet momenti | T40: sürekli kenarda | AA40: 0 | AD40: 0 | AG40: 0 | AJ40: 0 | AM40: 0 | AP40: 0 | AS40: 0 | AV40: 0 | AY40: 0.056
T41: süreksiz kenarda | AA41: 0.022 | AD41: 0.027 | AG41: 0.03 | AJ41: 0.033 | AM41: 0.034 | AP41: 0.036 | AS41: 0.039 | AV41: 0.04 | AY41: 0
G42: iki kısa kenar süreksiz | O42: açıklık momenti | AA42: 0.044 | AD42: 0.046 | AG42: 0.049 | AJ42: 0.051 | AM42: 0.053 | AP42: 0.055 | AS42: 0.058 | AV42: 0.06 | AY42: 0.044 | BB42: K5
O43: mesnet momenti | T43: sürekli kenarda | AA43: 0.056 | AD43: 0.061 | AG43: 0.065 | AJ43: 0.069 | AM43: 0.071 | AP43: 0.073 | AS43: 0.077 | AV43: 0.08 | AY43: 0
T44: süreksiz kenarda | AA44: 0 | AD44: 0 | AG44: 0 | AJ44: 0 | AM44: 0 | AP44: 0 | AS44: 0 | AV44: 0 | AY44: 0.022
G45: üç kenar süreksiz | O45: açıklık momenti | AA45: 0.044 | AD45: 0.049 | AG45: 0.054 | AJ45: 0.058 | AM45: 0.061 | AP45: 0.064 | AS45: 0.069 | AV45: 0.074 | AY45: 0.044 | BB45: K6
O46: mesnet momenti | T46: sürekli kenarda | AA46: 0.058 | AD46: 0.065 | AG46: 0.071 | AJ46: 0.077 | AM46: 0.081 | AP46: 0.085 | AS46: 0.092 | AV46: 0.098 | AY46: 0.058
T47: süreksiz kenarda | AA47: 0.022 | AD47: 0.025 | AG47: 0.027 | AJ47: 0.029 | AM47: 0.031 | AP47: 0.032 | AS47: 0.035 | AV47: 0.037 | AY47: 0.022
G48: dört kenarı süreksiz | O48: açıklık momenti | AA48: 0.05 | AD48: 0.057 | AG48: 0.062 | AJ48: 0.067 | AM48: 0.071 | AP48: 0.075 | AS48: 0.081 | AV48: 0.083 | AY48: 0.05 | BB48: K7
O49: mesnet momenti | T49: süreksiz kenarda | AA49: 0.025 | AD49: 0.029 | AG49: 0.031 | AJ49: 0.034 | AM49: 0.036 | AP49: 0.038 | AS49: 0.041 | AV49: 0.042 | AY49: 0.025
G51: m = Lsnu / Lsnk = | M51: =MAX(N12,Y5) -> 7 | O51: / | P51: =MIN(N12,Y5) -> 5 | R51: = | S51: =+M51/P51 -> 1.4 | V51: =IF(S51<=W51,"<",">") -> < | W51: 2 | Y51: =IF(S51<=W51,"uygun.iki yönde çalışan döşeme.","uygun değil.tek yönde çalışan döşeme.") -> uygun.iki yönde çalışan döşeme.
G52: D1 | I52: döşeme yükleri
G53: karo mozaik | N53: 0.022 | P53: m | Q53: * | R53: 8 | T53: KN/m3 | V53: = | W53: =+N53*R53 -> 0.176 | Z53: KN/m²
G54: harç | N54: 0.03 | P54: m | Q54: * | R54: 22 | T54: KN/m3 | V54: = | W54: 0.66 | Z54: KN/m²
G55: şap | N55: 0.015 | P55: m | Q55: * | R55: 20 | T55: KN/m3 | V55: = | W55: 0.3 | Z55: KN/m²
G56: betonarme döşeme | N56: 0.15 | P56: m | Q56: * | R56: 25 | T56: KN/m3 | V56: = | W56: 3.75 | Z56: KN/m²
G57: sıva | N57: 0.02 | P57: m | Q57: * | R57: 20 | T57: KN/m3 | V57: = | W57: 0.4 | Z57: KN/m²
G58: curuf | P58: m | Q58: * | R58: 12 | T58: KN/m3 | V58: = | W58: 0 | Z58: KN/m² | AB58: (düşük döşeme ise curuf 'a değer giriniz.)
R59: sabit yük g = | W59: =SUM(W53:Y58) -> 5.286 | Z59: KN/m²
Q60: hareketli yük q = | W60: 2 | Z60: KN/m²
L61: işletme yükü Pd = 1,4 * g + 1,6 * q = | W61: =1.4*W59+1.6*W60 -> 10.6004 | Z61: KN/m²
G63: döş. no | I63: m = Lu / Lk | L63: döş. tipi | N63: Pd | Q63: Lsnkısa | T63: x-x yönünde | AL63: y-y yönünde
T64: açıklıkta | Z64: mesnet; sürekli kenarda | AF64: mesnet; süreksiz kenarda | AL64: açıklıkta | AR64: mesnet; sürekli kenarda | AX64: mesnet; süreksiz kenarda
T67: axa | W67: Mxa | Z67: axm | AC67: Mxm | AF67: axm | AI67: Mxm | AL67: aya | AO67: Mya | AR67: aym | AU67: Mym | AX67: aym | BA67: Mym
I69: (m/m) | N69: (KN/m²) | Q69: (m) | W69: (KNm) | AC69: (KNm) | AI69: (KNm) | AO69: (KNm) | AU69: (KNm) | BA69: (KNm)
G70: =+G52 -> D1 | I70: =+I71 -> 1.4 | L70: =+AL20 -> K1 | N70: =+N71 -> 10.6004 | Q70: =MIN(Y5,N12) -> 5 | T70: =IF($L$70="K1",T77,IF($L$70="K2",T76,IF($L$70="K3",T75,IF($L$70="K4",T74,IF($L$70="K5",T73,IF($L$70="K6",T72,IF($L$70="K7",T71,0))))))) -> 0.025 | W70: =IF($L$70="K1",W77,IF($L$70="K2",W76,IF($L$70="K3",W75,IF($L$70="K4",W74,IF($L$70="K5",W73,IF($L$70="K6",W72,IF($L$70="K7",W71,IF($L$70="K8",#REF!,IF($L$70="K9",#REF!,IF($L$70="K10",#REF!,0)))))))))) -> 6.62525 | Z70: =IF($L$70="K1",Z77,IF($L$70="K2",Z76,IF($L$70="K3",Z75,IF($L$70="K4",Z74,IF($L$70="K5",Z73,IF($L$70="K6",Z72,IF($L$70="K7",Z71,0))))))) -> 0.033 | AC70: =IF($L$70="K1",AC77,IF($L$70="K2",AC76,IF($L$70="K3",AC75,IF($L$70="K4",AC74,IF($L$70="K5",AC73,IF($L$70="K6",AC72,IF($L$70="K7",AC71,IF($L$70="K8",#REF!,IF($L$70="K9",#REF!,IF($L$70="K10",#REF!,0)))))))))) -> 8.74533 | AF70: =IF($L$70="K1",AF77,IF($L$70="K2",AF76,IF($L$70="K3",AF75,IF($L$70="K4",AF74,IF($L$70="K5",AF73,IF($L$70="K6",AF72,IF($L$70="K7",AF71,0))))))) -> 0 | AI70: =IF($L$70="K1",AI77,IF($L$70="K2",AI76,IF($L$70="K3",AI75,IF($L$70="K4",AI74,IF($L$70="K5",AI73,IF($L$70="K6",AI72,IF($L$70="K7",AI71,IF($L$70="K8",#REF!,IF($L$70="K9",#REF!,IF($L$70="K10",#REF!,0)))))))))) -> 0 | AL70: =IF($L$70="K1",AL77,IF($L$70="K2",AL76,IF($L$70="K3",AL75,IF($L$70="K4",AL74,IF($L$70="K5",AL73,IF($L$70="K6",AL72,IF($L$70="K7",AL71,0))))))) -> 0.041 | AO70: =IF($L$70="K1",AO77,IF($L$70="K2",AO76,IF($L$70="K3",AO75,IF($L$70="K4",AO74,IF($L$70="K5",AO73,IF($L$70="K6",AO72,IF($L$70="K7",AO71,IF($L$70="K8",#REF!,IF($L$70="K9",#REF!,IF($L$70="K10",#REF!,0)))))))))) -> 10.86541 | AR70: =IF($L$70="K1",AR77,IF($L$70="K2",AR76,IF($L$70="K3",AR75,IF($L$70="K4",AR74,IF($L$70="K5",AR73,IF($L$70="K6",AR72,IF($L$70="K7",AR71,0))))))) -> 0.054 | AU70: =IF($L$70="K1",AU77,IF($L$70="K2",AU76,IF($L$70="K3",AU75,IF($L$70="K4",AU74,IF($L$70="K5",AU73,IF($L$70="K6",AU72,IF($L$70="K7",AU71,IF($L$70="K8",#REF!,IF($L$70="K9",#REF!,IF($L$70="K10",#REF!,0)))))))))) -> 14.31054 | AX70: =IF($L$70="K1",AX77,IF($L$70="K2",AX76,IF($L$70="K3",AX75,IF($L$70="K4",AX74,IF($L$70="K5",AX73,IF($L$70="K6",AX72,IF($L$70="K7",AX71,0))))))) -> 0 | BA70: =IF($L$70="K1",BA77,IF($L$70="K2",BA76,IF($L$70="K3",BA75,IF($L$70="K4",BA74,IF($L$70="K5",BA73,IF($L$70="K6",BA72,IF($L$70="K7",BA71,IF($L$70="K8",#REF!,IF($L$70="K9",#REF!,IF($L$70="K10",#REF!,0)))))))))) -> 0
G71: D1 | I71: 1.4 | L71: K7 | N71: 10.6004 | Q71: =+Q70 -> 5 | T71: =IF(Y5<=N12,INDEX($AA$48:$AX$48,0,MATCH(I71,$AA$30:$AX$30,1))+(I71-INDEX($AA$30:$AX$30,0,MATCH(I71,$AA$30:$AX$30,1)))*(INDEX($AA$48:$AX$48,0,MATCH(I71,$AA$30:$AX$30,1)+2)-INDEX($AA$48:$AX$48,0,MATCH(I71,$AA$30:$AX$30,1)))/(INDEX($AA$30:$AX$30,0,MATCH(I71,$AA$30:$AX$30,1)+2)-INDEX($AA$30:$AX$30,0,MATCH(I71,$AA$30:$AX$30,1))),$AY$48) -> 0.05 | W71: =T71*N71*Q71^2 -> 13.2505 | Z71: 0 | AC71: =Z71*N71*Q71^2 -> 0 | AF71: =IF(Y5<=N12,INDEX($AA$49:$AX$49,0,MATCH(I71,$AA$30:$AX$30,1))+(I71-INDEX($AA$30:$AX$30,0,MATCH(I71,$AA$30:$AX$30,1)))*(INDEX($AA$49:$AX$49,0,MATCH(I71,$AA$30:$AX$30,1)+2)-INDEX($AA$49:$AX$49,0,MATCH(I71,$AA$30:$AX$30,1)))/(INDEX($AA$30:$AX$30,0,MATCH(I71,$AA$30:$AX$30,1)+2)-INDEX($AA$30:$AX$30,0,MATCH(I71,$AA$30:$AX$30,1))),$AY$49) -> 0.025 | AI71: =AF71*N71*Q71^2 -> 6.62525 | AL71: =IF(Y5>N12,INDEX($AA$48:$AX$48,0,MATCH(I71,$AA$30:$AX$30,1))+(I71-INDEX($AA$30:$AX$30,0,MATCH(I71,$AA$30:$AX$30,1)))*(INDEX($AA$48:$AX$48,0,MATCH(I71,$AA$30:$AX$30,1)+2)-INDEX($AA$48:$AX$48,0,MATCH(I71,$AA$30:$AX$30,1)))/(INDEX($AA$30:$AX$30,0,MATCH(I71,$AA$30:$AX$30,1)+2)-INDEX($AA$30:$AX$30,0,MATCH(I71,$AA$30:$AX$30,1))),$AY$48) -> 0.071 | AO71: =AL71*N71*Q71^2 -> 18.81571 | AR71: 0 | AU71: =AR71*N71*Q71^2 -> 0 | AX71: =IF(Y5>N12,INDEX($AA$49:$AX$49,0,MATCH(I71,$AA$30:$AX$30,1))+(I71-INDEX($AA$30:$AX$30,0,MATCH(I71,$AA$30:$AX$30,1)))*(INDEX($AA$49:$AX$49,0,MATCH(I71,$AA$30:$AX$30,1)+2)-INDEX($AA$49:$AX$49,0,MATCH(I71,$AA$30:$AX$30,1)))/(INDEX($AA$30:$AX$30,0,MATCH(I71,$AA$30:$AX$30,1)+2)-INDEX($AA$30:$AX$30,0,MATCH(I71,$AA$30:$AX$30,1))),$AY$49) -> 0.036 | BA71: =AX71*N71*Q71^2 -> 9.54036
G72: D1 | I72: 1.4 | L72: K6 | N72: 10.6004 | Q72: =+Q71 -> 5 | T72: =IF(Y5<=N12,INDEX($AA$45:$AX$45,0,MATCH(I72,$AA$30:$AX$30,1))+(I72-INDEX($AA$30:$AX$30,0,MATCH(I72,$AA$30:$AX$30,1)))*(INDEX($AA$45:$AX$45,0,MATCH(I72,$AA$30:$AX$30,1)+2)-INDEX($AA$45:$AX$45,0,MATCH(I72,$AA$30:$AX$30,1)))/(INDEX($AA$30:$AX$30,0,MATCH(I72,$AA$30:$AX$30,1)+2)-INDEX($AA$30:$AX$30,0,MATCH(I72,$AA$30:$AX$30,1))),$AY$45) -> 0.044 | W72: =T72*N72*Q72^2 -> 11.66044 | Z72: =IF(Y5<=N12,INDEX($AA$46:$AX$46,0,MATCH(I72,$AA$30:$AX$30,1))+(I72-INDEX($AA$30:$AX$30,0,MATCH(I72,$AA$30:$AX$30,1)))*(INDEX($AA$46:$AX$46,0,MATCH(I72,$AA$30:$AX$30,1)+2)-INDEX($AA$46:$AX$46,0,MATCH(I72,$AA$30:$AX$30,1)))/(INDEX($AA$30:$AX$30,0,MATCH(I72,$AA$30:$AX$30,1)+2)-INDEX($AA$30:$AX$30,0,MATCH(I72,$AA$30:$AX$30,1))),$AY$46) -> 0.058 | AC72: =Z72*N72*Q72^2 -> 15.37058 | AF72: =IF(Y5<=N12,INDEX($AA$47:$AX$47,0,MATCH(I72,$AA$30:$AX$30,1))+(I72-INDEX($AA$30:$AX$30,0,MATCH(I72,$AA$30:$AX$30,1)))*(INDEX($AA$47:$AX$47,0,MATCH(I72,$AA$30:$AX$30,1)+2)-INDEX($AA$47:$AX$47,0,MATCH(I72,$AA$30:$AX$30,1)))/(INDEX($AA$30:$AX$30,0,MATCH(I72,$AA$30:$AX$30,1)+2)-INDEX($AA$30:$AX$30,0,MATCH(I72,$AA$30:$AX$30,1))),$AY$47) -> 0.022 | AI72: 5.83022 | AL72: =IF(Y5>N12,INDEX($AA$45:$AX$45,0,MATCH(I72,$AA$30:$AX$30,1))+(I72-INDEX($AA$30:$AX$30,0,MATCH(I72,$AA$30:$AX$30,1)))*(INDEX($AA$45:$AX$45,0,MATCH(I72,$AA$30:$AX$30,1)+2)-INDEX($AA$45:$AX$45,0,MATCH(I72,$AA$30:$AX$30,1)))/(INDEX($AA$30:$AX$30,0,MATCH(I72,$AA$30:$AX$30,1)+2)-INDEX($AA$30:$AX$30,0,MATCH(I72,$AA$30:$AX$30,1))),$AY$45) -> 0.061 | AO72: =AL72*N72*Q72^2 -> 16.16561 | AR72: =IF(Y5>N12,INDEX($AA$46:$AX$46,0,MATCH(I72,$AA$30:$AX$30,1))+(I72-INDEX($AA$30:$AX$30,0,MATCH(I72,$AA$30:$AX$30,1)))*(INDEX($AA$46:$AX$46,0,MATCH(I72,$AA$30:$AX$30,1)+2)-INDEX($AA$46:$AX$46,0,MATCH(I72,$AA$30:$AX$30,1)))/(INDEX($AA$30:$AX$30,0,MATCH(I72,$AA$30:$AX$30,1)+2)-INDEX($AA$30:$AX$30,0,MATCH(I72,$AA$30:$AX$30,1))),$AY$46) -> 0.081 | AU72: =AR72*N72*Q72^2 -> 21.46581 | AX72: =IF(Y5>N12,INDEX($AA$47:$AX$47,0,MATCH(I72,$AA$30:$AX$30,1))+(I72-INDEX($AA$30:$AX$30,0,MATCH(I72,$AA$30:$AX$30,1)))*(INDEX($AA$47:$AX$47,0,MATCH(I72,$AA$30:$AX$30,1)+2)-INDEX($AA$47:$AX$47,0,MATCH(I72,$AA$30:$AX$30,1)))/(INDEX($AA$30:$AX$30,0,MATCH(I72,$AA$30:$AX$30,1)+2)-INDEX($AA$30:$AX$30,0,MATCH(I72,$AA$30:$AX$30,1))),$AY$47) -> 0.031 | BA72: 8.21531
G73: D1 | I73: 1.4 | L73: K5 | N73: 10.6004 | Q73: =+Q72 -> 5 | T73: =IF(Y5<=N12,INDEX($AA$42:$AX$42,0,MATCH(I73,$AA$30:$AX$30,1))+(I73-INDEX($AA$30:$AX$30,0,MATCH(I73,$AA$30:$AX$30,1)))*(INDEX($AA$42:$AX$42,0,MATCH(I73,$AA$30:$AX$30,1)+2)-INDEX($AA$42:$AX$42,0,MATCH(I73,$AA$30:$AX$30,1)))/(INDEX($AA$30:$AX$30,0,MATCH(I73,$AA$30:$AX$30,1)+2)-INDEX($AA$30:$AX$30,0,MATCH(I73,$AA$30:$AX$30,1))),$AY$42) -> 0.044 | W73: =T73*N73*Q73^2 -> 11.66044 | Z73: =IF(Y5<=N12,INDEX($AA$43:$AX$43,0,MATCH(I73,$AA$30:$AX$30,1))+(I73-INDEX($AA$30:$AX$30,0,MATCH(I73,$AA$30:$AX$30,1)))*(INDEX($AA$43:$AX$43,0,MATCH(I73,$AA$30:$AX$30,1)+2)-INDEX($AA$43:$AX$43,0,MATCH(I73,$AA$30:$AX$30,1)))/(INDEX($AA$30:$AX$30,0,MATCH(I73,$AA$30:$AX$30,1)+2)-INDEX($AA$30:$AX$30,0,MATCH(I73,$AA$30:$AX$30,1))),$AY$43) -> 0 | AC73: =Z73*N73*Q73^2 -> 0 | AF73: =IF(Y5<=N12,INDEX($AA$44:$AX$44,0,MATCH(I73,$AA$30:$AX$30,1))+(I73-INDEX($AA$30:$AX$30,0,MATCH(I73,$AA$30:$AX$30,1)))*(INDEX($AA$44:$AX$44,0,MATCH(I73,$AA$30:$AX$30,1)+2)-INDEX($AA$44:$AX$44,0,MATCH(I73,$AA$30:$AX$30,1)))/(INDEX($AA$30:$AX$30,0,MATCH(I73,$AA$30:$AX$30,1)+2)-INDEX($AA$30:$AX$30,0,MATCH(I73,$AA$30:$AX$30,1))),$AY$44) -> 0.022 | AI73: 5.83022 | AL73: =IF(Y5>N12,INDEX($AA$42:$AX$42,0,MATCH(I73,$AA$30:$AX$30,1))+(I73-INDEX($AA$30:$AX$30,0,MATCH(I73,$AA$30:$AX$30,1)))*(INDEX($AA$42:$AX$42,0,MATCH(I73,$AA$30:$AX$30,1)+2)-INDEX($AA$42:$AX$42,0,MATCH(I73,$AA$30:$AX$30,1)))/(INDEX($AA$30:$AX$30,0,MATCH(I73,$AA$30:$AX$30,1)+2)-INDEX($AA$30:$AX$30,0,MATCH(I73,$AA$30:$AX$30,1))),$AY$42) -> 0.053 | AO73: =AL73*N73*Q73^2 -> 14.04553 | AR73: =IF(Y5>N12,INDEX($AA$43:$AX$43,0,MATCH(I73,$AA$30:$AX$30,1))+(I73-INDEX($AA$30:$AX$30,0,MATCH(I73,$AA$30:$AX$30,1)))*(INDEX($AA$43:$AX$43,0,MATCH(I73,$AA$30:$AX$30,1)+2)-INDEX($AA$43:$AX$43,0,MATCH(I73,$AA$30:$AX$30,1)))/(INDEX($AA$30:$AX$30,0,MATCH(I73,$AA$30:$AX$30,1)+2)-INDEX($AA$30:$AX$30,0,MATCH(I73,$AA$30:$AX$30,1))),$AY$43) -> 0.071 | AU73: =AR73*N73*Q73^2 -> 18.81571 | AX73: =IF(Y5>N12,INDEX($AA$44:$AX$44,0,MATCH(I73,$AA$30:$AX$30,1))+(I73-INDEX($AA$30:$AX$30,0,MATCH(I73,$AA$30:$AX$30,1)))*(INDEX($AA$44:$AX$44,0,MATCH(I73,$AA$30:$AX$30,1)+2)-INDEX($AA$44:$AX$44,0,MATCH(I73,$AA$30:$AX$30,1)))/(INDEX($AA$30:$AX$30,0,MATCH(I73,$AA$30:$AX$30,1)+2)-INDEX($AA$30:$AX$30,0,MATCH(I73,$AA$30:$AX$30,1))),$AY$44) -> 0 | BA73: 0
G74: D1 | I74: 1.4 | L74: K4 | N74: 10.6004 | Q74: 5 | T74: =IF(Y5<=N12,INDEX($AA$39:$AX$39,0,MATCH(I74,$AA$30:$AX$30,1))+(I74-INDEX($AA$30:$AX$30,0,MATCH(I74,$AA$30:$AX$30,1)))*(INDEX($AA$39:$AX$39,0,MATCH(I74,$AA$30:$AX$30,1)+2)-INDEX($AA$39:$AX$39,0,MATCH(I74,$AA$30:$AX$30,1)))/(INDEX($AA$30:$AX$30,0,MATCH(I74,$AA$30:$AX$30,1)+2)-INDEX($AA$30:$AX$30,0,MATCH(I74,$AA$30:$AX$30,1))),$AY$39) -> 0.044 | W74: =T74*N74*Q74^2 -> 11.66044 | Z74: =IF(Y5<=N12,INDEX($AA$40:$AX$40,0,MATCH(I74,$AA$30:$AX$30,1))+(I74-INDEX($AA$30:$AX$30,0,MATCH(I74,$AA$30:$AX$30,1)))*(INDEX($AA$40:$AX$40,0,MATCH(I74,$AA$30:$AX$30,1)+2)-INDEX($AA$40:$AX$40,0,MATCH(I74,$AA$30:$AX$30,1)))/(INDEX($AA$30:$AX$30,0,MATCH(I74,$AA$30:$AX$30,1)+2)-INDEX($AA$30:$AX$30,0,MATCH(I74,$AA$30:$AX$30,1))),$AY$40) -> 0.056 | AC74: =Z74*N74*Q74^2 -> 14.84056 | AF74: =IF(Y5<=N12,INDEX($AA$41:$AX$41,0,MATCH(I74,$AA$30:$AX$30,1))+(I74-INDEX($AA$30:$AX$30,0,MATCH(I74,$AA$30:$AX$30,1)))*(INDEX($AA$41:$AX$41,0,MATCH(I74,$AA$30:$AX$30,1)+2)-INDEX($AA$41:$AX$41,0,MATCH(I74,$AA$30:$AX$30,1)))/(INDEX($AA$30:$AX$30,0,MATCH(I74,$AA$30:$AX$30,1)+2)-INDEX($AA$30:$AX$30,0,MATCH(I74,$AA$30:$AX$30,1))),$AY$41) -> 0 | AI74: 0 | AL74: =IF(Y5>N12,INDEX($AA$39:$AX$39,0,MATCH(I74,$AA$30:$AX$30,1))+(I74-INDEX($AA$30:$AX$30,0,MATCH(I74,$AA$30:$AX$30,1)))*(INDEX($AA$39:$AX$39,0,MATCH(I74,$AA$30:$AX$30,1)+2)-INDEX($AA$39:$AX$39,0,MATCH(I74,$AA$30:$AX$30,1)))/(INDEX($AA$30:$AX$30,0,MATCH(I74,$AA$30:$AX$30,1)+2)-INDEX($AA$30:$AX$30,0,MATCH(I74,$AA$30:$AX$30,1))),$AY$39) -> 0.068 | AO74: =AL74*N74*Q74^2 -> 18.02068 | AR74: =IF(Y5>N12,INDEX($AA$40:$AX$40,0,MATCH(I74,$AA$30:$AX$30,1))+(I74-INDEX($AA$30:$AX$30,0,MATCH(I74,$AA$30:$AX$30,1)))*(INDEX($AA$40:$AX$40,0,MATCH(I74,$AA$30:$AX$30,1)+2)-INDEX($AA$40:$AX$40,0,MATCH(I74,$AA$30:$AX$30,1)))/(INDEX($AA$30:$AX$30,0,MATCH(I74,$AA$30:$AX$30,1)+2)-INDEX($AA$30:$AX$30,0,MATCH(I74,$AA$30:$AX$30,1))),$AY$40) -> 0 | AU74: =AR74*N74*Q74^2 -> 0 | AX74: =IF(Y5>N12,INDEX($AA$41:$AX$41,0,MATCH(I74,$AA$30:$AX$30,1))+(I74-INDEX($AA$30:$AX$30,0,MATCH(I74,$AA$30:$AX$30,1)))*(INDEX($AA$41:$AX$41,0,MATCH(I74,$AA$30:$AX$30,1)+2)-INDEX($AA$41:$AX$41,0,MATCH(I74,$AA$30:$AX$30,1)))/(INDEX($AA$30:$AX$30,0,MATCH(I74,$AA$30:$AX$30,1)+2)-INDEX($AA$30:$AX$30,0,MATCH(I74,$AA$30:$AX$30,1))),$AY$41) -> 0.034 | BA74: 9.01034
G75: D1 | I75: 1.4 | L75: K3 | N75: 10.6004 | Q75: 5 | T75: =IF(Y5<=N12,INDEX($AA$36:$AX$36,0,MATCH(I75,$AA$30:$AX$30,1))+(I75-INDEX($AA$30:$AX$30,0,MATCH(I75,$AA$30:$AX$30,1)))*(INDEX($AA$36:$AX$36,0,MATCH(I75,$AA$30:$AX$30,1)+2)-INDEX($AA$36:$AX$36,0,MATCH(I75,$AA$30:$AX$30,1)))/(INDEX($AA$30:$AX$30,0,MATCH(I75,$AA$30:$AX$30,1)+2)-INDEX($AA$30:$AX$30,0,MATCH(I75,$AA$30:$AX$30,1))),$AY$36) -> 0.037 | W75: =T75*N75*Q75^2 -> 9.80537 | Z75: =IF(Y5<=N12,INDEX($AA$37:$AX$37,0,MATCH(I75,$AA$30:$AX$30,1))+(I75-INDEX($AA$30:$AX$30,0,MATCH(I75,$AA$30:$AX$30,1)))*(INDEX($AA$37:$AX$37,0,MATCH(I75,$AA$30:$AX$30,1)+2)-INDEX($AA$37:$AX$37,0,MATCH(I75,$AA$30:$AX$30,1)))/(INDEX($AA$30:$AX$30,0,MATCH(I75,$AA$30:$AX$30,1)+2)-INDEX($AA$30:$AX$30,0,MATCH(I75,$AA$30:$AX$30,1))),$AY$37) -> 0.049 | AC75: =Z75*N75*Q75^2 -> 12.98549 | AF75: =IF(Y5<=N12,INDEX($AA$38:$AX$38,0,MATCH(I75,$AA$30:$AX$30,1))+(I75-INDEX($AA$30:$AX$30,0,MATCH(I75,$AA$30:$AX$30,1)))*(INDEX($AA$38:$AX$38,0,MATCH(I75,$AA$30:$AX$30,1)+2)-INDEX($AA$38:$AX$38,0,MATCH(I75,$AA$30:$AX$30,1)))/(INDEX($AA$30:$AX$30,0,MATCH(I75,$AA$30:$AX$30,1)+2)-INDEX($AA$30:$AX$30,0,MATCH(I75,$AA$30:$AX$30,1))),$AY$38) -> 0.019 | AI75: 5.03519 | AL75: =IF(Y5>N12,INDEX($AA$36:$AX$36,0,MATCH(I75,$AA$30:$AX$30,1))+(I75-INDEX($AA$30:$AX$30,0,MATCH(I75,$AA$30:$AX$30,1)))*(INDEX($AA$36:$AX$36,0,MATCH(I75,$AA$30:$AX$30,1)+2)-INDEX($AA$36:$AX$36,0,MATCH(I75,$AA$30:$AX$30,1)))/(INDEX($AA$30:$AX$30,0,MATCH(I75,$AA$30:$AX$30,1)+2)-INDEX($AA$30:$AX$30,0,MATCH(I75,$AA$30:$AX$30,1))),$AY$36) -> 0.053 | AO75: =AL75*N75*Q75^2 -> 14.04553 | AR75: =IF(Y5>N12,INDEX($AA$37:$AX$37,0,MATCH(I75,$AA$30:$AX$30,1))+(I75-INDEX($AA$30:$AX$30,0,MATCH(I75,$AA$30:$AX$30,1)))*(INDEX($AA$37:$AX$37,0,MATCH(I75,$AA$30:$AX$30,1)+2)-INDEX($AA$37:$AX$37,0,MATCH(I75,$AA$30:$AX$30,1)))/(INDEX($AA$30:$AX$30,0,MATCH(I75,$AA$30:$AX$30,1)+2)-INDEX($AA$30:$AX$30,0,MATCH(I75,$AA$30:$AX$30,1))),$AY$37) -> 0.07 | AU75: =AR75*N75*Q75^2 -> 18.5507 | AX75: =IF(Y5>N12,INDEX($AA$38:$AX$38,0,MATCH(I75,$AA$30:$AX$30,1))+(I75-INDEX($AA$30:$AX$30,0,MATCH(I75,$AA$30:$AX$30,1)))*(INDEX($AA$38:$AX$38,0,MATCH(I75,$AA$30:$AX$30,1)+2)-INDEX($AA$38:$AX$38,0,MATCH(I75,$AA$30:$AX$30,1)))/(INDEX($AA$30:$AX$30,0,MATCH(I75,$AA$30:$AX$30,1)+2)-INDEX($AA$30:$AX$30,0,MATCH(I75,$AA$30:$AX$30,1))),$AY$38) -> 0.027 | BA75: 7.15527
G76: D1 | I76: 1.4 | L76: K2 | N76: 10.6004 | Q76: 5 | T76: =IF(Y5<=N12,INDEX($AA$33:$AX$33,0,MATCH(I76,$AA$30:$AX$30,1))+(I76-INDEX($AA$30:$AX$30,0,MATCH(I76,$AA$30:$AX$30,1)))*(INDEX($AA$33:$AX$33,0,MATCH(I76,$AA$30:$AX$30,1)+2)-INDEX($AA$33:$AX$33,0,MATCH(I76,$AA$30:$AX$30,1)))/(INDEX($AA$30:$AX$30,0,MATCH(I76,$AA$30:$AX$30,1)+2)-INDEX($AA$30:$AX$30,0,MATCH(I76,$AA$30:$AX$30,1))),$AY$33) -> 0.031 | W76: =T76*N76*Q76^2 -> 8.21531 | Z76: =IF(Y5<=N12,INDEX($AA$34:$AX$34,0,MATCH(I76,$AA$30:$AX$30,1))+(I76-INDEX($AA$30:$AX$30,0,MATCH(I76,$AA$30:$AX$30,1)))*(INDEX($AA$34:$AX$34,0,MATCH(I76,$AA$30:$AX$30,1)+2)-INDEX($AA$34:$AX$34,0,MATCH(I76,$AA$30:$AX$30,1)))/(INDEX($AA$30:$AX$30,0,MATCH(I76,$AA$30:$AX$30,1)+2)-INDEX($AA$30:$AX$30,0,MATCH(I76,$AA$30:$AX$30,1))),$AY$34) -> 0.041 | AC76: =Z76*N76*Q76^2 -> 10.86541 | AF76: =IF(Y5<=N12,INDEX($AA$35:$AX$35,0,MATCH(I76,$AA$30:$AX$30,1))+(I76-INDEX($AA$30:$AX$30,0,MATCH(I76,$AA$30:$AX$30,1)))*(INDEX($AA$35:$AX$35,0,MATCH(I76,$AA$30:$AX$30,1)+2)-INDEX($AA$35:$AX$35,0,MATCH(I76,$AA$30:$AX$30,1)))/(INDEX($AA$30:$AX$30,0,MATCH(I76,$AA$30:$AX$30,1)+2)-INDEX($AA$30:$AX$30,0,MATCH(I76,$AA$30:$AX$30,1))),$AY$35) -> 0.016 | AI76: 4.24016 | AL76: =IF(Y5>N12,INDEX($AA$33:$AX$33,0,MATCH(I76,$AA$30:$AX$30,1))+(I76-INDEX($AA$30:$AX$30,0,MATCH(I76,$AA$30:$AX$30,1)))*(INDEX($AA$33:$AX$33,0,MATCH(I76,$AA$30:$AX$30,1)+2)-INDEX($AA$33:$AX$33,0,MATCH(I76,$AA$30:$AX$30,1)))/(INDEX($AA$30:$AX$30,0,MATCH(I76,$AA$30:$AX$30,1)+2)-INDEX($AA$30:$AX$30,0,MATCH(I76,$AA$30:$AX$30,1))),$AY$33) -> 0.046 | AO76: =AL76*N76*Q76^2 -> 12.19046 | AR76: =IF(Y5>N12,INDEX($AA$34:$AX$34,0,MATCH(I76,$AA$30:$AX$30,1))+(I76-INDEX($AA$30:$AX$30,0,MATCH(I76,$AA$30:$AX$30,1)))*(INDEX($AA$34:$AX$34,0,MATCH(I76,$AA$30:$AX$30,1)+2)-INDEX($AA$34:$AX$34,0,MATCH(I76,$AA$30:$AX$30,1)))/(INDEX($AA$30:$AX$30,0,MATCH(I76,$AA$30:$AX$30,1)+2)-INDEX($AA$30:$AX$30,0,MATCH(I76,$AA$30:$AX$30,1))),$AY$34) -> 0.061 | AU76: =AR76*N76*Q76^2 -> 16.16561 | AX76: =IF(Y5>N12,INDEX($AA$35:$AX$35,0,MATCH(I76,$AA$30:$AX$30,1))+(I76-INDEX($AA$30:$AX$30,0,MATCH(I76,$AA$30:$AX$30,1)))*(INDEX($AA$35:$AX$35,0,MATCH(I76,$AA$30:$AX$30,1)+2)-INDEX($AA$35:$AX$35,0,MATCH(I76,$AA$30:$AX$30,1)))/(INDEX($AA$30:$AX$30,0,MATCH(I76,$AA$30:$AX$30,1)+2)-INDEX($AA$30:$AX$30,0,MATCH(I76,$AA$30:$AX$30,1))),$AY$35) -> 0.023 | BA76: 6.09523
G77: D1 | I77: =+S51 -> 1.4 | L77: K1 | N77: =+W61 -> 10.6004 | Q77: 5 | T77: =IF(Y5<=N12,INDEX($AA$31:$AX$31,0,MATCH(I77,$AA$30:$AX$30,1))+(I77-INDEX($AA$30:$AX$30,0,MATCH(I77,$AA$30:$AX$30,1)))*(INDEX($AA$31:$AX$31,0,MATCH(I77,$AA$30:$AX$30,1)+2)-INDEX($AA$31:$AX$31,0,MATCH(I77,$AA$30:$AX$30,1)))/(INDEX($AA$30:$AX$30,0,MATCH(I77,$AA$30:$AX$30,1)+2)-INDEX($AA$30:$AX$30,0,MATCH(I77,$AA$30:$AX$30,1))),$AY$31) -> 0.025 | W77: =T77*N77*Q77^2 -> 6.62525 | Z77: =IF(Y5<=N12,INDEX($AA$32:$AX$32,0,MATCH(I77,$AA$30:$AX$30,1))+(I77-INDEX($AA$30:$AX$30,0,MATCH(I77,$AA$30:$AX$30,1)))*(INDEX($AA$32:$AX$32,0,MATCH(I77,$AA$30:$AX$30,1)+2)-INDEX($AA$32:$AX$32,0,MATCH(I77,$AA$30:$AX$30,1)))/(INDEX($AA$30:$AX$30,0,MATCH(I77,$AA$30:$AX$30,1)+2)-INDEX($AA$30:$AX$30,0,MATCH(I77,$AA$30:$AX$30,1))),$AY$32) -> 0.033 | AC77: =Z77*N77*Q77^2 -> 8.74533 | AF77: 0 | AI77: =AF77*N77*Q77^2 -> 0 | AL77: =IF(Y5>N12,INDEX($AA$31:$AX$31,0,MATCH(I77,$AA$30:$AX$30,1))+(I77-INDEX($AA$30:$AX$30,0,MATCH(I77,$AA$30:$AX$30,1)))*(INDEX($AA$31:$AX$31,0,MATCH(I77,$AA$30:$AX$30,1)+2)-INDEX($AA$31:$AX$31,0,MATCH(I77,$AA$30:$AX$30,1)))/(INDEX($AA$30:$AX$30,0,MATCH(I77,$AA$30:$AX$30,1)+2)-INDEX($AA$30:$AX$30,0,MATCH(I77,$AA$30:$AX$30,1))),$AY$31) -> 0.041 | AO77: =AL77*N77*Q77^2 -> 10.86541 | AR77: =IF(Y5>N12,INDEX($AA$32:$AX$32,0,MATCH(I77,$AA$30:$AX$30,1))+(I77-INDEX($AA$30:$AX$30,0,MATCH(I77,$AA$30:$AX$30,1)))*(INDEX($AA$32:$AX$32,0,MATCH(I77,$AA$30:$AX$30,1)+2)-INDEX($AA$32:$AX$32,0,MATCH(I77,$AA$30:$AX$30,1)))/(INDEX($AA$30:$AX$30,0,MATCH(I77,$AA$30:$AX$30,1)+2)-INDEX($AA$30:$AX$30,0,MATCH(I77,$AA$30:$AX$30,1))),$AY$32) -> 0.054 | AU77: =AR77*N77*Q77^2 -> 14.31054 | AX77: 0 | BA77: =AX77*N77*Q77^2 -> 0
